fUST/lending_fUST_20250610
["ID","MTS","AMOUNT","RATE_DAILY","PERIOD"]
[365222116,1749545441435,-460.0,0.00021369,4]
[365222117,1749545441445,-1350.81,0.00021369,4]
[365222118,1749545441454,-460.0,0.00021369,4]
[365222119,1749545441464,-500.0,0.000214,2]
[365222120,1749545441474,-500.0,0.000214,2]
[365222121,1749545441483,-738.88,0.0002142,4]
[365222122,1749545441494,-1165.0,0.00021442,2]
[365222123,1749545441503,-389.79435841,0.00021456,2]
[365222124,1749545441513,-204.97111004,0.00021471,5]
[365222125,1749545441523,-420.0,0.00021583,2]
[365222126,1749545441534,-738.88,0.00021642,4]
[365222127,1749545441543,-460.0,0.00021643,4]
[365222128,1749545441552,-460.0,0.00021643,4]
[365222129,1749545441564,-256.93264835,0.00021643,4]
[365222130,1749545441573,-460.0,0.00021643,4]
[365222131,1749545441583,-400.0,0.00021643,4]
[365222132,1749545441592,-560.96930371,0.00021643,4]
[365222133,1749545441601,-320.0,0.00021643,4]
[365222134,1749545441611,-310.0,0.00021643,4]
[365222135,1749545441620,-460.0,0.00021643,4]
[365222136,1749545441631,-460.0,0.00021643,4]
[365222137,1749545441641,-460.0,0.00021643,4]
[365222138,1749545441651,-420.0,0.00021643,4]
[365222139,1749545441660,-460.0,0.00021643,4]
[365222140,1749545441669,-460.0,0.00021643,2]
[365222141,1749545441679,-337.85283087,0.00021643,4]
[365222142,1749545441688,-201.08793765,0.00021643,4]
[365222143,1749545441698,-457.47,0.00021643,4]
[365222144,1749545441707,-460.0,0.00021643,4]
[365222145,1749545441717,-460.0,0.00021643,4]
[365222146,1749545441726,-390.0,0.00021643,4]
[365222147,1749545441735,-460.0,0.00021643,4]
[365222148,1749545441745,-1098.16,0.00021643,4]
[365222149,1749545441754,-460.0,0.00021643,4]
[365222150,1749545441763,-460.0,0.00021643,4]
[365222151,1749545441772,-847.9,0.00021643,4]
[365222152,1749545441782,-420.0,0.00021643,4]
[365222153,1749545441791,-2343.12,0.00021643,4]
[365222154,1749545441801,-460.0,0.00021643,4]
[365222155,1749545441813,-460.0,0.00021643,4]
[365222156,1749545441822,-460.0,0.00021643,4]
[365222157,1749545441832,-1059.16,0.00021643,4]
[365222158,1749545441841,-460.0,0.00021643,4]
[365222159,1749545441851,-460.0,0.00021643,4]
[365222160,1749545441860,-460.0,0.00021643,4]
[365222161,1749545441871,-460.0,0.00021643,4]
[365222162,1749545441880,-992.63,0.00021643,4]
[365222163,1749545441890,-460.0,0.00021643,4]
[365222164,1749545441900,-460.0,0.00021643,4]
[365222165,1749545441909,-440.0,0.00021643,4]
[365222166,1749545441919,-666.08,0.00021643,4]
[365222167,1749545441929,-460.0,0.00021643,4]
[365222168,1749545441939,-460.0,0.00021643,4]
[365222169,1749545441948,-1081.99,0.00021643,4]
[365222170,1749545441958,-460.0,0.00021643,4]
[365222171,1749545441968,-380.0,0.00021643,4]
[365222172,1749545441981,-460.0,0.00021643,4]
[365222173,1749545441991,-460.0,0.00021643,4]
[365222174,1749545442000,-189.82804007,0.00021643,4]
[365222175,1749545442010,-460.0,0.00021643,4]
[365222176,1749545442022,-1350.81,0.00021643,4]
[365222177,1749545442032,-460.0,0.00021643,4]
[365222178,1749545442042,-1680.0,0.00021685,2]
[365222179,1749545442053,-204.97111004,0.00021757,5]
[365222180,1749545442063,-1064.0,0.0002181,7]
[365222181,1749545442073,-1688.0,0.00021831,2]
[365222182,1749545442083,-160.02203713,0.00021831,2]
[365222183,1749545442093,-5000.0,0.00021831,2]
[365222184,1749545442103,-500.0,0.00021831,2]
[365222185,1749545442113,-500.0,0.00021831,2]
[365222186,1749545442122,-500.0,0.00021831,2]
[365222187,1749545442132,-500.0,0.00021831,2]
[365222188,1749545442142,-500.0,0.00021831,2]
[365222189,1749545442152,-500.0,0.00021831,2]
[365222190,1749545442162,-500.0,0.00021831,2]
[365222191,1749545442172,-500.0,0.00021831,2]
[365222192,1749545442182,-500.0,0.00021831,2]
[365222193,1749545442191,-500.0,0.00021831,2]
[365222194,1749545442201,-500.0,0.00021831,2]
[365222195,1749545442211,-933.09097051,0.00021831,2]
[365222196,1749545442220,-500.0,0.00021831,2]
[365222197,1749545442229,-500.0,0.00021831,2]
[365222198,1749545442239,-500.0,0.00021831,2]
[365222199,1749545442249,-500.0,0.00021831,2]
[365222200,1749545442258,-500.0,0.00021831,2]
[365222201,1749545442267,-500.0,0.00021831,2]
[365222202,1749545442276,-500.0,0.00021831,2]
[365222203,1749545442286,-500.0,0.00021831,2]
[365222204,1749545442295,-500.0,0.00021831,2]
[365222205,1749545442307,-500.0,0.00021831,2]
[365222206,1749545442317,-500.0,0.00021831,2]
[365222207,1749545442326,-500.0,0.00021831,2]
[365222208,1749545442336,-500.0,0.00021831,2]
[365222209,1749545442346,-500.0,0.00021831,2]
[365222210,1749545442355,-500.0,0.00021831,2]
[365222211,1749545442364,-500.0,0.00021831,2]
[365222212,1749545442373,-500.0,0.00021831,2]
[365222213,1749545442382,-500.0,0.00021831,2]
[365222214,1749545442392,-500.0,0.00021831,2]
[365222215,1749545442403,-207.4,0.00021831,2]
[365222216,1749545442412,-888.38849433,0.00021833,2]
[365222217,1749545442421,-1750.456,0.00021886,2]
[365222218,1749545442431,-505.8254603,0.000219,2]
[365222219,1749545442440,-738.88,0.00021916,4]
[365222220,1749545442451,-460.0,0.00021917,4]
[365222221,1749545442460,-460.0,0.00021917,4]
[365222222,1749545442470,-460.0,0.00021917,4]
[365222223,1749545442479,-460.0,0.00021917,4]
[365222224,1749545442488,-460.0,0.00021917,4]
[365222225,1749545442497,-460.0,0.00021917,4]
[365222226,1749545442507,-460.0,0.00021917,4]
[365222227,1749545442516,-460.0,0.00021917,2]
[365222228,1749545442525,-460.0,0.00021917,4]
[365222229,1749545442534,-460.0,0.00021917,4]
[365222230,1749545442543,-380.0,0.00021917,4]
[365222231,1749545442553,-1098.16,0.00021917,4]
[365222232,1749545442563,-460.0,0.00021917,4]
[365222233,1749545442572,-460.0,0.00021917,4]
[365222234,1749545442581,-847.9,0.00021917,4]
[365222235,1749545442591,-2343.12,0.00021917,4]
[365222236,1749545442600,-153.19,0.00021917,4]
[365222237,1749545442610,-380.0,0.00021917,4]
[365222238,1749545442619,-460.0,0.00021917,4]
[365222239,1749545442628,-1059.16,0.00021917,4]
[365222240,1749545442638,-460.0,0.00021917,4]
[365222241,1749545442648,-534.95899576,0.00021917,4]
[365222242,1749545442657,-420.0,0.00021917,4]
[365222243,1749545442667,-460.0,0.00021917,4]
[365222244,1749545442676,-992.63,0.00021917,4]
[365222245,1749545442686,-460.0,0.00021917,4]
[365222246,1749545442696,-460.0,0.00021917,4]
[365222247,1749545442705,-666.08,0.00021917,4]
[365222248,1749545442714,-460.0,0.00021917,4]
[365222249,1749545442725,-460.0,0.00021917,4]
[365222250,1749545442735,-1081.99,0.00021917,4]
[365222251,1749545442744,-460.0,0.00021917,4]
[365222252,1749545442754,-460.0,0.00021917,4]
[365222253,1749545442764,-460.0,0.00021917,4]
[365222255,1749545442773,-460.0,0.00021917,4]
[365222257,1749545442782,-1350.81,0.00021917,4]
[365222258,1749545442791,-460.0,0.00021917,4]
[365222259,1749545442801,-1064.0,0.00021933,7]
[365222260,1749545442812,-1815.222872,0.00021941,2]
[365222261,1749545442823,-504.21706496,0.00021948,2]
[365222262,1749545442833,-185.58755301,0.00021985,2]
[365222263,1749545442843,-470.00032443,0.00021996,2]
[365222264,1749545442853,-738.88,0.00021997,4]
[365222265,1749545442862,-2299.15,0.00021998,2]
[365222266,1749545442872,-186.0,0.00022,2]
[365222267,1749545442881,-161.0,0.00022,2]
[365222268,1749545442890,-185.0,0.00022,3]
[365222269,1749545442900,-185.0,0.00022,3]
[365222270,1749545442910,-204.97111004,0.00022043,6]
[365222271,1749545442919,-1064.0,0.00022056,7]
[365222272,1749545442928,-500.0,0.00022069,2]
[365222273,1749545442938,-500.0,0.00022069,2]
[365222274,1749545442947,-1279.1504716,0.00022091,2]
[365222275,1749545442957,-1064.0,0.0002218,7]
[365222276,1749545442966,-1165.0,0.00022188,2]
[365222277,1749545442979,-460.0,0.00022191,4]
[365222278,1749545442988,-460.0,0.00022191,4]
[365222279,1749545442998,-380.0,0.00022191,4]
[365222280,1749545443008,-460.0,0.00022191,4]
[365222281,1749545443019,-360.0,0.00022191,4]
[365222282,1749545443029,-380.0,0.00022191,4]
[365222283,1749545443039,-380.0,0.00022191,4]
[365222284,1749545443048,-460.0,0.00022191,2]
[365222285,1749545443059,-420.0,0.00022191,4]
[365222286,1749545443069,-460.0,0.00022191,4]
[365222287,1749545443078,-1098.16,0.00022191,4]
[365222289,1749545443088,-460.0,0.00022191,4]
[365222291,1749545443097,-380.0,0.00022191,4]
[365222292,1749545443107,-847.9,0.00022191,4]
[365222293,1749545443116,-2343.12,0.00022191,4]
[365222294,1749545443126,-460.0,0.00022191,4]
[365222295,1749545443135,-1059.16,0.00022191,4]
[365222296,1749545443145,-360.0,0.00022191,4]
[365222297,1749545443154,-380.0,0.00022191,4]
[365222298,1749545443164,-992.63,0.00022191,4]
[365222299,1749545443173,-460.0,0.00022191,4]
[365222300,1749545443183,-174.72260962,0.00022191,4]
[365222301,1749545443192,-666.08,0.00022191,4]
[365222302,1749545443202,-460.0,0.00022191,4]
[365222303,1749545443211,-460.0,0.00022191,4]
[365222304,1749545443221,-1081.99,0.00022191,4]
[365222305,1749545443231,-460.0,0.00022191,4]
[365222306,1749545443240,-460.0,0.00022191,4]
[365222307,1749545443249,-460.0,0.00022191,4]
[365222308,1749545443259,-320.0,0.00022191,4]
[365222309,1749545443268,-1350.81,0.00022191,4]
[365222310,1749545443379,-180.0,0.00022191,4]
[365222311,1749545443390,-738.88,0.00022198,4]
[365222312,1749545443401,-160.65084302,0.000222,69]
[365222313,1749545443411,-153.51658329,0.00022219,2]
[365222314,1749545443420,-153.77818202,0.00022219,4]
[365222315,1749545443430,-500.0,0.00022219,4]
[365222316,1749545443440,-500.0,0.00022219,4]
[365222317,1749545443450,-500.0,0.00022246,4]
[365222318,1749545443459,-505.67156772,0.00022246,4]
[365222319,1749545443469,-515.18519638,0.00022274,4]
[365222320,1749545443478,-356.81,0.000223,7]
[365222321,1749545443488,-1064.0,0.00022303,7]
[365222322,1749545443497,-204.97111004,0.00022329,7]
[365222323,1749545443507,-5000.0,0.00022379,2]
[365222324,1749545443516,-1064.0,0.00022426,7]
[365222325,1749545443525,-888.38849433,0.00022449,2]
[365222326,1749545443535,-460.0,0.00022465,4]
[365222327,1749545443545,-360.0,0.00022465,4]
[365222328,1749545443556,-438.16,0.00022465,4]
[365222329,1749545443565,-400.0,0.00022465,2]
[365222330,1749545443575,-400.0,0.00022465,2]
[365222331,1749545443585,-400.0,0.00022465,2]
[365222332,1749545443595,-400.0,0.00022465,2]
[365222333,1749545443605,-400.0,0.00022465,2]
[365222334,1749545443614,-166.0,0.00022465,2]
[365222335,1749545443624,-460.0,0.00022465,2]
[365222336,1749545443634,-460.0,0.00022465,4]
[365222337,1749545443643,-1098.16,0.00022465,4]
[365222338,1749545443654,-313.76,0.00022465,4]
[365222339,1749545443663,-847.9,0.00022465,4]
[365222340,1749545443673,-2343.12,0.00022465,4]
[365222341,1749545443682,-460.0,0.00022465,4]
[365222342,1749545443691,-1059.16,0.00022465,4]
[365222343,1749545443701,-992.63,0.00022465,4]
[365222344,1749545443711,-460.0,0.00022465,4]
[365222345,1749545443721,-666.08,0.00022465,4]
[365222346,1749545443730,-460.0,0.00022465,4]
[365222347,1749545443739,-460.0,0.00022465,4]
[365222348,1749545443749,-1081.99,0.00022465,4]
[365222349,1749545443759,-460.0,0.00022465,4]
[365222350,1749545443768,-460.0,0.00022465,4]
[365222351,1749545443778,-460.0,0.00022465,4]
[365222352,1749545443787,-1350.81,0.00022465,4]
[365222353,1749545443798,-1064.0,0.00022549,7]
[365222354,1749545443808,-204.97111004,0.00022614,7]
[365222355,1749545443817,-1000.0,0.00022617,2]
[365222356,1749545443827,-501.71124826,0.00022617,2]
[365222357,1749545443837,-1053.71775002,0.0002264,2]
[365222358,1749545443846,-185.58755301,0.00022651,2]
[365222359,1749545443855,-1064.0,0.00022673,7]
[365222360,1749545443865,-692.52,0.00022729,3]
[365222361,1749545443874,-346.26,0.00022729,3]
[365222362,1749545443884,-738.88,0.00022738,4]
[365222363,1749545443893,-151.0,0.00022739,7]
[365222364,1749545443903,-151.0,0.00022739,7]
[365222365,1749545443913,-460.0,0.00022739,4]
[365222366,1749545443922,-360.0,0.00022739,2]
[365222367,1749545443931,-460.0,0.00022739,4]
[365222368,1749545443940,-1098.16,0.00022739,4]
[365222369,1749545443950,-847.9,0.00022739,4]
[365222370,1749545443960,-2343.12,0.00022739,4]
[365222371,1749545443971,-460.0,0.00022739,4]
[365222372,1749545443982,-1059.16,0.00022739,4]
[365222373,1749545443991,-992.63,0.00022739,4]
[365222374,1749545444001,-460.0,0.00022739,4]
[365222375,1749545444010,-666.08,0.00022739,4]
[365222376,1749545444021,-460.0,0.00022739,4]
[365222377,1749545444030,-460.0,0.00022739,4]
[365222378,1749545444040,-1081.99,0.00022739,4]
[365222379,1749545444049,-460.0,0.00022739,4]
[365222380,1749545444060,-460.0,0.00022739,4]
[365222381,1749545444069,-316.24,0.00022739,4]
[365222382,1749545444078,-1350.81,0.00022739,4]
[365222383,1749545444087,-500.57016739,0.00022767,2]
[365222384,1749545444097,-500.0,0.00022767,2]
[365222385,1749545444107,-500.0,0.00022767,2]
[365222386,1749545444116,-1064.0,0.00022796,7]
[365222387,1749545444126,-11858.11761888,0.00022796,7]
[365222388,1749545444135,-842.5625,0.000228,7]
[365222389,1749545444145,-204.97111004,0.000229,8]
[365222390,1749545444155,-1064.0,0.00022919,7]
[365222391,1749545444164,-5000.0,0.00022927,2]
[365222392,1749545444174,-3065.53,0.00022954,2]
[365222393,1749545444183,-738.88,0.00022985,4]
[365222394,1749545444192,-738.88,0.00022985,4]
[365222395,1749545444202,-151.0,0.00023,7]
[365222396,1749545444211,-151.0,0.00023,7]
[365222397,1749545444221,-166.25829,0.00023,7]
[365222398,1749545444230,-1000.0,0.00023,23]
[365222399,1749545444240,-3439.46512918,0.00023,2]
[365222400,1749545444249,-185.0,0.00023,5]
[365222401,1749545444258,-184.5353184,0.00023,5]
[365222402,1749545444267,-159.173599,0.00023,20]
[365222403,1749545444277,-152.32,0.00023013,4]
[365222404,1749545444286,-460.0,0.00023013,4]
[365222405,1749545444295,-1098.16,0.00023013,4]
[365222406,1749545444305,-847.9,0.00023013,4]
[365222407,1749545444314,-2343.12,0.00023013,4]
[365222408,1749545444323,-460.0,0.00023013,4]
[365222409,1749545444333,-1059.16,0.00023013,4]
[365222410,1749545444342,-992.63,0.00023013,4]
[365222411,1749545444351,-460.0,0.00023013,4]
[365222412,1749545444360,-666.08,0.00023013,4]
[365222413,1749545444370,-460.0,0.00023013,4]
[365222414,1749545444380,-460.0,0.00023013,4]
[365222415,1749545444389,-1081.99,0.00023013,4]
[365222416,1749545444398,-460.0,0.00023013,4]
[365222417,1749545444408,-460.0,0.00023013,4]
[365222418,1749545444418,-1350.81,0.00023013,4]
[365222419,1749545444427,-738.88,0.0002302,4]
[365222420,1749545444436,-2246.361504,0.00023029,3]
[365222421,1749545444445,-163.7222236,0.00023041,2]
[365222422,1749545444455,-1322.0,0.00023042,2]
[365222423,1749545444465,-1064.0,0.00023043,7]
[365222424,1749545444474,-888.38849433,0.00023064,2]
[365222425,1749545444484,-213.1263252,0.000231,3]
[365222426,1749545444493,-963.0,0.00023122,2]
[365222427,1749545444503,-2202.679,0.00023122,2]
[365222428,1749545444512,-653.0,0.00023122,2]
[365222429,1749545444521,-405.0,0.00023122,2]
[365222430,1749545444530,-150.124,0.00023122,2]
[365222431,1749545444540,-1500.0,0.00023165,2]
[365222432,1749545444549,-1064.0,0.00023166,7]
[365222433,1749545444559,-600.0,0.00023171,2]
[365222434,1749545444568,-204.97111004,0.00023186,8]
[365222435,1749545444578,-151.0,0.000232,9]
[365222436,1749545444587,-215.0738,0.000232,2]
[365222437,1749545444596,-1322.0,0.00023244,2]
[365222438,1749545444605,-200.71821639,0.0002328,3]
[365222439,1749545444616,-316.0,0.0002328,3]
[365222440,1749545444626,-316.0,0.0002328,3]
[365222441,1749545444635,-316.0,0.0002328,3]
[365222442,1749545444644,-316.0,0.0002328,3]
[365222443,1749545444653,-328.020454,0.0002328,3]
[365222444,1749545444662,-151.0,0.00023287,7]
[365222445,1749545444672,-460.0,0.00023287,4]
[365222446,1749545444681,-1098.16,0.00023287,4]
[365222447,1749545444690,-847.9,0.00023287,4]
[365222448,1749545444700,-2343.12,0.00023287,4]
[365222449,1749545444709,-460.0,0.00023287,4]
[365222450,1749545444719,-1059.16,0.00023287,4]
[365222451,1749545444728,-992.63,0.00023287,4]
[365222452,1749545444737,-363.48,0.00023287,4]
[365222453,1749545444747,-666.08,0.00023287,4]
[365222454,1749545444757,-460.0,0.00023287,4]
[365222455,1749545444766,-303.55,0.00023287,4]
[365222456,1749545444776,-1081.99,0.00023287,4]
[365222457,1749545444785,-460.0,0.00023287,4]
[365222458,1749545444794,-460.0,0.00023287,4]
[365222459,1749545444804,-1350.81,0.00023287,4]
[365222460,1749545444813,-1064.0,0.00023289,7]
[365222461,1749545444822,-738.88,0.00023294,4]
[365222462,1749545444832,-151.0,0.000233,8]
[365222463,1749545444841,-185.0,0.000233,10]
[365222464,1749545444850,-185.0,0.000233,10]
[365222465,1749545444860,-555.29053022,0.00023315,2]
[365222466,1749545444869,-185.58755301,0.00023318,2]
[365222467,1749545444878,-151.0,0.000234,6]
[365222468,1749545444887,-638.0,0.000234,2]
[365222469,1749545444896,-601.48050061,0.00023412,2]
[365222470,1749545444905,-1064.0,0.00023412,7]
[365222471,1749545444915,-204.97111004,0.00023471,9]
[365222472,1749545444925,-500.0,0.00023473,2]
[365222473,1749545444935,-500.0,0.00023473,2]
[365222474,1749545444944,-600.0,0.00023473,2]
[365222475,1749545444954,-500.0,0.00023473,2]
[365222476,1749545444963,-500.0,0.00023473,2]
[365222477,1749545444974,-5000.0,0.00023475,2]
[365222478,1749545444987,-1322.0,0.00023499,2]
[365222479,1749545444996,-206.40813592,0.00023499,2]
[365222480,1749545445005,-738.88,0.00023499,4]
[365222481,1749545445015,-738.88,0.00023499,4]
[365222482,1749545445025,-210781.23034893,0.00023499,2]
[365222483,1749545445151,-460.0,0.00021095,4]
[365222484,1749545445162,-390.0,0.00021369,4]
[365222485,1749545445171,-154.57619613,0.00023499,2]
[365222486,1749545445183,-341.86580591,0.00023499,2]
[365222487,1749545445195,-296.533642,0.00023499,2]
[365222488,1749545445299,-565.00481274,0.00023499,2]
[365222494,1749545446266,-270.83380019,0.00023499,2]
[365222515,1749545564818,-207.57613395,0.00018086,2]
[365222516,1749545569436,-169.090823,0.00018086,2]
[365222517,1749545571145,-186.23675429,0.00018086,2]
[365222518,1749545573376,-159.61573173,0.00018086,2]
[365222519,1749545574999,-61.22022059,0.00018086,2]
[365222525,1749545833077,5000.0,0.00018,2]
[365222527,1749545848947,1352.91642962,0.00018,2]
[365222528,1749545848972,3647.08357038,0.00018,2]
[365222529,1749545864302,5000.0,0.00018,2]
[365222531,1749545879536,3910.24742962,0.00018,2]
[365222532,1749545879559,1089.75257038,0.00018,2]
[365222534,1749545894843,5000.0,0.00018,2]
[365222535,1749545911230,5000.0,0.00018,2]
[365222536,1749545927191,1467.57842962,0.00018,2]
[365222537,1749545927214,3532.42157038,0.00018,2]
[365222538,1749545944287,5000.0,0.00018,2]
[365222539,1749545959536,4024.90942962,0.00018,2]
[365222540,1749545959563,975.09057038,0.00018,2]
[365222542,1749545972094,234.56,0.0002328,120]
[365222543,1749545974881,5000.0,0.00018,2]
[365222544,1749545991343,5000.0,0.00018,2]
[365222545,1749546007296,1582.24042962,0.00018,2]
[365222546,1749546007321,3417.75957038,0.00018,2]
[365222547,1749546022630,5000.0,0.00018,2]
[365222548,1749546037966,4139.57142962,0.00018,2]
[365222549,1749546037990,860.42857038,0.00018,2]
[365222550,1749546053290,5000.0,0.00018,2]
[365222551,1749546068470,5000.0,0.00018,2]
[365222552,1749546084669,1696.90242962,0.00018,2]
[365222553,1749546084693,3303.09757038,0.00018,2]
[365222555,1749546092090,-246.43739752,0.00018343,2]
[365222576,1749546288089,-293.72853395,0.00018344,2]
[365222577,1749546289858,-251.22513046,0.00018344,2]
[365222578,1749546292247,-300.0,0.00018344,2]
[365222588,1749546406888,-157.19,0.00018344,2]
[365222591,1749546466948,-282.34501652,0.00018344,2]
[365222592,1749546469900,-256.0321286,0.00018344,2]
[365222593,1749546478169,5000.0,0.00018,2]
[365222595,1749546525399,310.936022,0.00013699,2]
[365222597,1749546554716,-293.72853395,0.00018089,2]
[365222598,1749546573767,-282.34501652,0.00018089,2]
[365222600,1749546588420,-172.2273783,0.00018089,2]
[365222601,1749546590256,-397.17778172,0.00018089,2]
[365222602,1749546592147,-251.22513046,0.00018089,2]
[365222603,1749546592549,1084.67249258,0.00023233,120]
[365222604,1749546603197,-104.74289925,0.00018089,2]
[365222633,1749546632467,-5000.0,0.00018344,2]
[365222635,1749546632483,-564.3022968,0.00018529,2]
[365222637,1749546632493,-166.25810841,0.00018756,2]
[365222639,1749546632502,-174.787305,0.00018856,2]
[365222641,1749546632511,-1200.0,0.00018899,2]
[365222643,1749546632520,-2836.39895727,0.000189,2]
[365222645,1749546632529,-300.0,0.00018998,2]
[365222647,1749546632539,-300.0,0.00018998,2]
[365222649,1749546632548,-300.0,0.00018998,2]
[365222650,1749546632558,-300.0,0.00018999,2]
[365222651,1749546632568,-3821.38153252,0.00019,2]
[365222652,1749546632578,-248.599664,0.00019101,2]
[365222653,1749546632587,-181.273498,0.00019178,2]
[365222654,1749546632597,-166.25810841,0.00019384,2]
[365222655,1749546632607,-50000.0,0.00019384,2]
[365222656,1749546632617,-500.0,0.00019497,2]
[365222657,1749546632627,-500.0,0.00019497,2]
[365222658,1749546632639,-500.0,0.00019497,2]
[365222659,1749546632648,-159.66683611,0.00019497,2]
[365222660,1749546632658,-500.0,0.00019497,2]
[365222661,1749546632668,-500.0,0.00019497,2]
[365222662,1749546632677,-500.0,0.00019497,2]
[365222663,1749546632686,-651.22534075,0.00019497,2]
[365222664,1749546632696,-500.0,0.00019497,2]
[365222665,1749546632705,-272.79318554,0.00019497,2]
[365222666,1749546632717,-194.69529095,0.00019497,2]
[365222667,1749546632727,-500.0,0.00019497,2]
[365222668,1749546632736,-500.0,0.00019497,2]
[365222669,1749546632745,-19.01792572,0.00019497,2]
[365222670,1749546632898,-211.01106072,0.00019497,2]
[365222671,1749546632908,-75.2926355,0.00019497,2]
[365222672,1749546632920,-424.7073645,0.00019497,2]
[365222673,1749546632929,-500.0,0.00019497,2]
[365222674,1749546632940,-534.49923852,0.00019497,2]
[365222675,1749546632949,-500.0,0.00019497,2]
[365222676,1749546632959,-466.57105134,0.00019497,2]
[365222677,1749546632968,-500.0,0.00019497,2]
[365222678,1749546632977,-296.0629712,0.00019497,2]
[365222693,1749546638459,-203.9370288,0.00019497,2]
[365222694,1749546638469,-500.0,0.00019497,2]
[365222695,1749546638479,-316.0629712,0.00019497,2]
[365222696,1749546638490,-183.9370288,0.00019497,2]
[365222697,1749546638500,-215.27412209,0.00019497,2]
[365222698,1749546638510,-129.68594029,0.00019497,2]
[365222699,1749546638548,-370.31405971,0.00019497,2]
[365222700,1749546638558,-500.0,0.00019497,2]
[365222701,1749546638568,-500.0,0.00019497,2]
[365222702,1749546638577,-500.0,0.00019497,2]
[365222703,1749546638587,-500.0,0.00019497,2]
[365222704,1749546638597,-500.0,0.00019497,2]
[365222705,1749546638607,-500.0,0.00019497,2]
[365222706,1749546638616,-500.0,0.00019497,2]
[365222707,1749546638626,-500.0,0.00019497,2]
[365222708,1749546638636,-500.0,0.00019497,2]
[365222709,1749546638645,-500.0,0.00019497,2]
[365222710,1749546638655,-190.58601356,0.00019497,2]
[365222711,1749546638665,-359.4703468,0.00019499,2]
[365222712,1749546638675,-16000.0,0.0001958,2]
[365222713,1749546638684,-13472.20328108,0.0001958,2]
[365222714,1749546638693,-163.26,0.0001968,2]
[365222715,1749546638703,-5000.0,0.00019692,2]
[365222716,1749546638712,-875.75346016,0.00019741,2]
[365222717,1749546638721,-166.25810841,0.00020012,2]
[365222718,1749546638731,-849.39,0.00020102,2]
[365222719,1749546638741,-11810.9668084,0.00020112,2]
[365222720,1749546638751,-310.936022,0.00020187,2]
[365222721,1749546638761,-195.412,0.00020311,2]
[365222722,1749546638770,-510.90140186,0.00020461,2]
[365222723,1749546638780,-212.408525,0.00020462,2]
[365222724,1749546638791,-1680.0,0.00020702,2]
[365222725,1749546638801,-420.0,0.00020708,2]
[365222726,1749546638813,-420.0,0.00020708,2]
[365222727,1749546638824,-420.0,0.00020708,2]
[365222728,1749546638833,-420.0,0.00020709,2]
[365222729,1749546638844,-2355.8550693,0.00020995,2]
[365222730,1749546638853,-1357.26320323,0.00021056,2]
[365222731,1749546638866,-1698.79,0.0002106,2]
[365222732,1749546638876,-500.05332043,0.00021073,2]
[365222733,1749546638886,-508.54380695,0.00021073,2]
[365222734,1749546638896,-500.0,0.00021073,2]
[365222735,1749546638906,-500.0,0.00021073,2]
[365222736,1749546638915,-500.0,0.00021073,2]
[365222737,1749546638924,-500.0,0.00021073,2]
[365222738,1749546638934,-500.0,0.00021073,2]